bitfinex-derivatives/quotes_BNBF0:USTF0_20250221
["timestamp","ask_amount","ask_price","bid_price","bid_amount"]
[1740162144664,0.30868484,647.91,647.3,0.27372207]
[1740162145767,1.132,648.13,647.3,0.27372207]
[1740162146372,1.132,648.13,647.31,0.27325093]
[1740162146570,1.132,648.13,647.07,0.27325093]
[1740162146769,1.132,648.13,647.08,0.27325093]
[1740162146965,1.132,648.13,647.07,0.27325093]
[1740162147264,1.132,648.13,647.08,0.27325093]
[1740162147469,1.132,648.13,647.09,0.27325093]
[1740162147665,1.132,648.13,647.07,0.27325093]
[1740162147868,1.132,648.13,647.08,0.27325093]
[1740162148065,1.132,648.13,647.09,0.27325093]
[1740162148265,1.132,648.13,647.1,0.27325093]
[1740162148470,1.132,648.13,647.07,0.27325093]
[1740162148671,1.132,648.13,647.08,0.27325093]
[1740162148871,1.132,648.13,647.09,0.27325093]
[1740162149072,1.132,648.13,647.1,0.27325093]
[1740162149367,1.132,648.13,647.11,0.27325093]
[1740162149573,1.132,648.13,647.12,0.27323133]
[1740162149773,1.132,648.13,647.13,0.27323133]
[1740162149966,1.132,648.13,647.14,0.27323133]
[1740162150171,1.132,648.13,647.15,0.27323133]
[1740162150368,1.132,648.13,647.16,0.27323133]
[1740162150673,1.132,648.13,647.17,0.27323133]
[1740162150974,1.132,648.13,647.18,0.27323133]
[1740162151169,1.132,648.13,647.07,0.27323133]
[1740162151370,1.132,648.13,647.08,0.27323133]
[1740162151569,1.132,648.13,647.09,0.27323133]
[1740162151870,1.132,648.13,647.1,0.27323133]
[1740162152073,1.132,648.13,647.06,1.242]
[1740162152074,1.132,648.13,647.11,0.27323133]
[1740162152275,1.132,648.13,647.12,0.27323133]
[1740162152474,1.132,648.13,647.13,0.27323133]
[1740162152770,1.132,648.13,647.14,0.27306869]
[1740162152974,1.132,648.13,647.06,1.242]
[1740162152975,1.132,648.13,647.15,0.27306869]
[1740162153168,1.132,648.13,647.16,0.27306869]
[1740162153369,1.132,648.13,647.17,0.27306869]
[1740162153572,1.132,648.13,647.18,0.27306869]
[1740162153777,1.132,648.13,647.06,1.242]
[1740162153778,1.132,648.13,647.19,0.27306869]
[1740162153972,1.132,648.13,647.07,0.27306869]
[1740162154178,1.132,648.13,647.06,1.242]
[1740162154377,1.132,648.13,647.07,0.27307705]
[1740162154579,1.132,648.13,647.08,0.27307705]
[1740162154877,1.132,648.13,647.09,0.27307705]
[1740162155176,1.132,648.13,647.06,1.242]
[1740162155177,1.132,648.13,647.1,0.27307705]
[1740162155375,1.132,648.13,647.11,0.27307705]
[1740162155575,1.132,648.13,647.12,0.27307705]
[1740162155778,1.52357421,649.12,647.06,1.242]
[1740162155973,0.30815691,649.02,647.07,0.27306051]
[1740162156172,1.49806723,649.01,647.07,0.27306051]
[1740162156376,1.52357421,649.13,647.07,0.27306051]
[1740162156377,0.30817115,648.99,647.07,0.27306051]
[1740162156672,1.52280453,648.99,647.07,0.27306051]
[1740162156875,1.21463338,648.98,647.07,0.27306051]
[1740162157077,0.3081854,648.96,647.07,0.27306051]
[1740162157276,1.21463338,648.95,647.07,0.27306051]
[1740162157580,0.30819965,648.93,647.07,0.27306051]
[1740162157778,1.21463338,648.92,647.07,0.27306051]
[1740162157979,1.2143167,648.91,647.07,0.27306051]
[1740162158179,0.30819965,648.93,647.07,0.27306051]
[1740162158380,1.21455471,648.92,647.07,0.27306051]
[1740162158681,0.30819965,648.93,647.07,0.27306051]
[1740162158875,1.343,648.91,647.08,0.30908079]
[1740162159080,0.30821865,648.89,647.09,0.27306051]
[1740162159380,0.30821865,648.89,647.1,0.27306051]
[1740162159579,0.30821865,648.89,647.11,0.27306051]
[1740162159782,0.30821865,648.89,647.12,0.27306051]
[1740162160080,0.30821865,648.89,647.13,0.27306051]
[1740162160374,0.30821865,648.89,647.14,0.27306051]
[1740162160579,0.30821865,648.89,647.15,0.27306051]
[1740162160776,0.30821865,648.89,647.16,0.27281466]
[1740162160983,0.28336317,648.88,647.17,0.27281466]
[1740162161275,0.30821865,648.89,647.18,0.27281466]
[1740162161478,0.28336406,648.88,647.19,0.27281466]
[1740162161682,0.28336406,648.88,647.2,0.27281466]
[1740162161876,0.3082329,648.86,647.21,0.27281466]
[1740162162077,0.3082329,648.86,647.22,0.27281466]
[1740162162274,0.3082329,648.86,647.08,0.30908079]
[1740162162275,0.3082329,648.86,647.23,0.27281466]
[1740162162481,0.3082329,648.86,647.24,0.27281466]
[1740162162685,0.3082329,648.86,647.25,0.27281466]
[1740162162981,0.3082329,648.86,647.26,0.27281466]
[1740162163181,0.3082329,648.86,647.27,0.27281466]
[1740162163382,0.3082329,648.86,647.28,0.27281466]
[1740162163583,0.3082329,648.86,647.08,0.30908079]
[1740162163584,0.3082329,648.86,647.29,0.27281466]
[1740162163777,0.3082329,648.86,647.09,0.27281466]
[1740162163982,0.3082329,648.86,647.1,0.27281466]
[1740162164180,0.3082329,648.86,647.11,0.27281466]
[1740162164382,0.3082329,648.86,647.12,0.27281466]
[1740162164577,0.3082329,648.86,647.13,0.27281466]
[1740162164775,0.3082329,648.86,647.14,0.27281466]
[1740162164981,0.28340966,648.85,647.15,0.27281466]
[1740162165180,0.30824715,648.83,647.16,0.27281466]
[1740162165383,0.30824715,648.83,647.09,0.27281466]
[1740162165683,0.30824715,648.83,647.1,0.27281466]
[1740162165882,0.30824715,648.83,647.11,0.27281466]
[1740162166083,0.30824715,648.83,647.12,0.27281466]
[1740162166283,0.30824715,648.83,647.08,0.30908079]
[1740162166284,0.30824715,648.83,647.09,0.27281466]
[1740162166482,0.28344014,648.82,647.1,0.27281466]
[1740162166683,0.3082614,648.8,647.09,0.27281466]
[1740162166883,0.28344698,648.79,647.1,0.27281466]
[1740162167084,1.21321645,648.78,647.09,0.27281466]
[1740162167284,1.49666343,648.77,647.1,0.27281466]
[1740162167479,1.49666343,648.76,647.1,0.27281466]
[1740162167677,0.30828991,648.74,647.11,0.27281466]
[1740162167883,0.30828991,648.74,647.08,0.30908079]
[1740162167884,1.21321645,648.73,647.12,0.27281466]
[1740162168184,0.30830417,648.71,647.13,0.27281466]
[1740162168385,1.21321645,648.7,647.09,0.27281466]
[1740162168583,0.30831843,648.68,647.1,0.27281466]
[1740162168780,0.30831843,648.68,647.11,0.27281466]
[1740162168983,0.30831843,648.68,647.09,0.27281466]
[1740162169284,0.30831843,648.68,647.1,0.27281466]
[1740162169486,0.30831843,648.68,647.11,0.27281466]
[1740162169779,0.30831843,648.68,647.12,0.27281466]
[1740162169983,0.30831843,648.68,647.09,0.27281466]
[1740162170186,0.30831843,648.68,647.1,0.27281466]
[1740162170385,0.30831843,648.68,647.08,0.30908079]
[1740162170386,0.30831843,648.68,647.09,0.27281466]
[1740162171989,0.30831843,648.68,647.1,0.27273334]
[1740162172182,0.30831843,648.68,647.11,0.27273334]
[1740162172488,0.30831843,648.68,647.12,0.27273334]
[1740162172782,0.30831843,648.68,647.13,0.27273334]
[1740162172990,0.30831843,648.68,647.09,0.27273334]
[1740162173288,0.30831843,648.68,647.08,0.30908079]
[1740162173289,0.30831843,648.68,647.1,0.27273334]
[1740162173490,0.30831843,648.68,647.11,0.27273334]
[1740162173689,0.30831843,648.68,647.12,0.27273334]
[1740162173890,0.30831843,648.68,647.13,0.27273334]
[1740162174088,0.30831843,648.68,647.14,0.27273334]
[1740162174291,1.332,648.67,647.15,0.27273334]
[1740162174489,1.332,648.67,647.08,0.30908079]
[1740162174490,0.30833269,648.65,647.16,0.27273334]
[1740162174692,0.30833269,648.65,647.09,0.27273334]
[1740162174992,0.30833269,648.65,647.1,0.27273334]
[1740162175191,0.30833269,648.65,647.09,0.27273334]
[1740162175393,0.30833269,648.65,647.1,0.27273334]
[1740162175593,0.30833269,648.65,647.09,0.27273334]
[1740162175788,0.30833269,648.65,647.1,0.27273334]
[1740162175992,0.30833269,648.65,647.11,0.27273334]
[1740162176188,0.30833269,648.65,647.12,0.27273334]
[1740162176393,0.30833269,648.65,647.09,0.27273334]
[1740162176589,0.30833269,648.65,647.1,0.27273334]
[1740162176793,0.30833269,648.65,647.09,0.27273334]
[1740162177093,0.30833269,648.65,647.1,0.27279241]
[1740162177295,0.30833269,648.65,647.09,0.27279241]
[1740162177498,0.30833269,648.65,647.1,0.27279241]
[1740162177695,0.30833269,648.65,647.09,0.27279241]
[1740162177891,1.21347186,648.64,647.1,0.27279241]
[1740162178091,0.30833269,648.65,647.06,2.62131069]
[1740162178092,0.30833269,648.65,647.11,0.27279241]
[1740162178493,0.30833269,648.65,647.12,0.27279241]
[1740162178692,0.30423954,648.65,647.13,0.27288938]
[1740162178892,0.30423954,648.65,647.07,0.27288938]
[1740162179090,0.30423954,648.65,647.06,2.62131069]
[1740162179091,0.30423954,648.65,647.14,0.27288938]
[1740162179294,0.30423954,648.65,647.15,0.27288938]
[1740162179497,0.30423954,648.65,647.16,0.27288938]
[1740162179796,0.30423954,648.65,647.17,0.27288938]
[1740162179991,0.30423954,648.65,647.08,0.27288938]
[1740162180195,0.30423954,648.65,647.07,1.37931069]
[1740162180391,0.30423954,648.65,647.08,0.27264394]
[1740162182196,0.30423954,648.65,647.09,0.27264394]
[1740162182397,1.21440617,648.64,647.07,0.27264394]
[1740162182693,0.30423954,648.65,647.08,0.27264394]
[1740162182898,0.30423954,648.65,647.09,0.27264394]
[1740162183095,0.30423954,648.65,647.05,0.27264394]
[1740162183300,0.30423954,648.65,647.06,0.27264394]
[1740162183601,0.30423954,648.65,647.07,0.27264394]
[1740162183796,0.30423954,648.65,647.08,0.27264394]
[1740162184100,0.30423954,648.65,647.09,0.27264394]
[1740162184296,0.30423954,648.65,647.1,0.27264394]
[1740162184493,0.30423954,648.65,647.11,0.5817104]
[1740162184698,0.30423954,648.65,647.12,0.58170562]
[1740162184893,0.30423954,648.65,647.13,0.58170085]
[1740162185098,0.30423954,648.65,647.14,0.58169607]
[1740162185299,0.30423954,648.65,647.15,0.27264394]
[1740162185595,0.30423954,648.65,647.16,0.27264394]
[1740162185801,0.30423954,648.65,647.17,0.27264394]
[1740162185997,0.30423954,648.65,647.18,0.27264394]
[1740162186194,0.30423954,648.65,647.52,1.37931069]
[1740162186398,0.30423954,648.65,647.53,0.27264394]
[1740162189096,0.30423954,648.65,647.54,0.27264394]
[1740162189294,0.30423954,648.65,647.55,0.27264394]
[1740162189499,1.139,648.64,647.56,0.27264394]
[1740162189694,0.30834695,648.62,647.57,0.27264394]
[1740162189897,0.30834695,648.62,647.31,0.27264394]
[1740162190097,0.30834695,648.62,647.32,0.27264394]
[1740162190300,0.30834695,648.62,647.31,0.27264394]
[1740162190497,0.30834695,648.62,647.32,0.27264394]
[1740162190702,0.30834695,648.62,647.41,1.37931069]
[1740162190898,0.30834695,648.62,647.42,0.27264394]
[1740162191298,0.30834695,648.62,647.41,1.37931069]
[1740162191499,0.30834695,648.62,647.42,0.2722648]
[1740162192897,0.30834695,648.62,647.46,1.37931069]
[1740162193098,0.30834695,648.62,647.47,0.2722648]
[1740162194097,0.30834695,648.62,647.48,0.2722648]
[1740162194299,0.30834695,648.62,647.49,0.2722648]
[1740162194498,0.30834695,648.62,647.5,0.2722648]
[1740162194699,0.30834695,648.62,647.51,0.2722648]
[1740162194904,0.30834695,648.62,647.52,0.2722648]
[1740162195102,0.30834695,648.62,647.53,0.2722648]
[1740162195298,0.30834695,648.62,647.54,0.2722648]
[1740162195499,0.30834695,648.62,647.55,0.2722648]
[1740162195698,0.30834695,648.62,647.56,0.2722648]
[1740162195907,0.30834695,648.62,647.52,1.37931069]
[1740162196102,0.30834695,648.62,647.53,0.2722648]
[1740162196500,0.30834695,648.62,647.54,0.2722648]
[1740162196706,0.30834695,648.62,647.55,0.2722648]
[1740162197005,0.30834695,648.62,647.56,0.2722648]
[1740162197205,0.30834695,648.62,647.57,0.2722648]
[1740162197404,0.30834695,648.62,647.53,0.2722648]
[1740162197604,0.30834695,648.62,647.54,0.2722648]
[1740162197804,0.30834695,648.62,647.52,1.37931069]
[1740162197805,0.30834695,648.62,647.55,0.2722648]
[1740162198102,0.30834695,648.62,647.19,1.61150901]
[1740162198103,0.30834695,648.62,647.74,1.37931069]
[1740162198308,0.30834695,648.62,647.75,0.2722648]
[1740162200508,0.30834695,648.62,647.63,0.2722648]
[1740162200809,0.30834695,648.62,647.64,0.2722648]
[1740162201008,0.30834695,648.62,647.63,0.2722648]
[1740162201203,0.30834695,648.62,647.65,0.2722648]
[1740162201406,0.30834695,648.62,647.66,0.2722648]
[1740162201608,0.30834695,648.62,647.63,0.2722648]
[1740162201804,0.30834695,648.62,647.64,0.2722648]
[1740162202206,0.30834695,648.62,647.65,0.2722648]
[1740162202402,0.30834695,648.62,647.63,0.2722648]
[1740162202607,0.30834695,648.62,647.64,0.2722648]
[1740162202803,0.30834695,648.62,647.65,0.2722648]
[1740162203102,0.30834695,648.62,647.66,0.2722648]
[1740162203303,0.30834695,648.62,647.63,0.2722648]
[1740162203504,0.30834695,648.62,647.64,0.2722648]
[1740162203701,0.30834695,648.62,647.51,0.2722648]
[1740162203908,0.30834695,648.62,647.52,0.2722648]
[1740162204110,0.30834695,648.62,647.51,0.2722648]
[1740162205110,0.30834695,648.62,647.52,0.2722648]
[1740162205310,0.30834695,648.62,647.53,0.2722648]
[1740162205511,0.30834695,648.62,647.54,0.2722648]
[1740162205712,0.30834695,648.62,647.41,0.2722648]
[1740162205913,0.30834695,648.62,647.42,0.2722648]
[1740162206112,0.30834695,648.62,647.43,0.27187069]
[1740162206314,0.30834695,648.62,647.41,0.27187069]
[1740162206510,0.30834695,648.62,647.42,0.27187069]
[1740162206710,0.30834695,648.62,647.41,0.27187069]
[1740162206906,0.30834695,648.62,647.42,0.27187069]
[1740162207110,0.30834695,648.62,647.43,0.27187069]
[1740162207311,0.30834695,648.62,647.44,0.27187069]
[1740162207510,0.30834695,648.62,647.45,0.27187069]
[1740162207710,0.30834695,648.62,647.41,0.27187069]
[1740162207912,0.30834695,648.62,647.42,0.27187069]
[1740162209716,0.30834695,648.62,647.43,0.27187069]
[1740162209914,0.30834695,648.62,647.44,1.65118138]
[1740162210114,0.30834695,648.62,647.45,0.27187069]
[1740162210316,0.30834695,648.62,647.46,0.27187069]
[1740162210517,0.30834695,648.62,647.47,0.27187069]
[1740162210717,0.30834695,648.62,647.48,0.27187069]
[1740162210917,0.30834695,648.62,647.49,0.27187069]
[1740162211115,0.30834695,648.62,647.5,0.27187069]
[1740162211421,0.30834695,648.62,647.51,0.27187069]
[1740162211619,0.30834695,648.62,647.52,0.27187069]
[1740162211821,0.30834695,648.62,647.76,1.37931069]
[1740162212021,0.30834695,648.62,647.77,0.27187069]
[1740162212221,0.30834219,648.63,647.77,0.27187069]
[1740162213724,0.30834219,648.63,647.78,0.27187069]
[1740162213922,0.30834219,648.63,647.51,1.37931069]
[1740162213923,0.30834219,648.63,647.79,0.27187069]
[1740162214223,0.30834219,648.63,647.8,0.27187069]
[1740162214422,0.30834219,648.63,647.52,0.27187069]
[1740162214622,0.30834219,648.63,647.53,0.27187069]
[1740162214823,0.30834219,648.63,647.52,0.27187069]
[1740162215022,0.30834219,648.63,647.54,0.27187069]
[1740162215218,0.30834219,648.63,647.55,0.27187069]
[1740162215420,0.30834219,648.63,647.56,0.27187069]
[1740162215618,0.30834219,648.63,647.57,0.27187069]
[1740162215821,0.30834219,648.63,647.52,0.27187069]
[1740162216017,0.30834219,648.63,647.53,0.27187069]
[1740162216318,0.30834219,648.63,647.54,0.27187069]
[1740162216518,0.30834219,648.63,647.55,0.27187069]
[1740162216719,0.30834219,648.63,647.52,0.27187069]
[1740162217024,0.30834219,648.63,647.53,0.27187069]
[1740162217323,0.30834219,648.63,647.54,0.27187069]
[1740162217524,0.30834219,648.63,647.52,0.27187069]
[1740162217725,0.30834219,648.63,647.51,1.61114841]
[1740162217726,0.30834219,648.63,647.53,0.27187069]
[1740162217926,0.30834219,648.63,647.52,0.27187069]
[1740162220728,0.30834219,648.63,647.51,1.61114841]
[1740162220929,0.30834219,648.63,647.52,0.27170253]
[1740162222630,0.30834219,648.63,647.53,0.27170253]
[1740162222830,0.30834219,648.63,647.54,0.27170253]
[1740162223031,0.30834219,648.63,647.51,2.9904591]
[1740162223032,0.30834219,648.63,647.55,0.27170253]
[1740162223229,0.30834219,648.63,647.56,0.27170253]
[1740162223424,0.30834219,648.63,647.54,0.27170253]
[1740162223732,0.30834219,648.63,647.55,0.27170253]
[1740162223931,0.30834219,648.63,647.53,1.37931069]
[1740162224132,0.30834219,648.63,647.54,0.27163438]
[1740162224431,0.30834219,648.63,647.55,0.27163438]
[1740162224633,0.30834219,648.63,647.56,0.27163438]
[1740162224832,0.30834219,648.63,647.57,0.27163438]
[1740162225033,0.30834219,648.63,647.54,0.27163438]
[1740162225936,0.30834219,648.63,647.7,1.37931069]
[1740162226131,0.30834219,648.63,647.71,0.27163438]
[1740162226830,0.30834219,648.63,647.71,0.26674004]
[1740162228435,0.30834219,648.63,647.72,0.26674004]
[1740162228638,0.30834219,648.63,647.73,0.26674004]
[1740162228838,0.30834219,648.63,647.7,1.37931069]
[1740162228839,0.30834219,648.63,647.77,1.37931069]
[1740162229036,0.30834219,648.63,647.78,0.27177151]
[1740162229232,0.30834219,648.63,647.77,1.37931069]
[1740162229233,0.30834219,648.63,647.79,0.27177151]
[1740162229439,0.30834219,648.63,647.8,0.27177151]
[1740162229639,0.30834219,648.63,647.81,0.27177151]
[1740162229838,0.30834219,648.63,647.78,0.27177151]
[1740162230135,0.30834219,648.63,647.79,0.27177151]
[1740162230337,0.30834219,648.63,647.8,0.27177151]
[1740162230538,0.30834219,648.63,647.78,0.27177151]
[1740162230832,0.30834219,648.63,647.79,0.27177151]
[1740162231040,0.30834219,648.63,647.8,0.27177151]
[1740162231337,0.30834219,648.63,647.81,0.27177151]
[1740162231539,0.30834219,648.63,647.82,0.27177151]
[1740162231740,0.30834219,648.63,647.83,0.27177151]
[1740162231937,0.30834219,648.63,647.84,0.27177151]
[1740162232239,0.30834219,648.63,648.11,1.37931069]
[1740162232439,0.30834219,648.63,648.12,0.27163676]
[1740162234037,0.30834219,648.63,647.96,0.27163676]
[1740162234238,0.30834219,648.63,647.97,0.27163676]
[1740162234538,0.30834219,648.63,647.98,0.27163676]
[1740162234739,0.30834219,648.63,647.99,0.27163676]
[1740162234938,0.30834219,648.63,647.96,0.27163676]
[1740162235140,0.30834219,648.63,647.97,0.27163676]
[1740162235441,0.30834219,648.63,647.98,0.27163676]
[1740162235639,0.30834219,648.63,647.96,0.27163676]
[1740162235839,0.30834219,648.63,648.0,1.37931069]
[1740162236041,0.30834219,648.63,648.01,0.27163676]
[1740162238336,0.30834219,648.63,648.02,0.27163676]
[1740162238541,0.30834219,648.63,647.96,1.37931069]
[1740162238736,0.30834219,648.63,647.97,0.27147307]
[1740162240836,0.30834219,648.63,647.92,0.27147307]
[1740162241037,0.30834219,648.63,647.93,0.27147307]
[1740162241236,0.30834219,648.63,647.91,1.37931069]
[1740162241442,0.30834219,648.63,647.92,0.27163432]
[1740162243544,0.30834219,648.63,647.91,1.37931069]
[1740162243843,0.30834219,648.63,647.67,1.37931069]
[1740162244038,0.30834219,648.63,647.72,1.61046494]
[1740162244241,0.30834219,648.63,647.73,0.27174443]
[1740162244641,0.30834219,648.63,647.74,0.27185338]
[1740162244940,0.30834219,648.63,647.75,0.27185338]
[1740162245145,0.30834219,648.63,647.67,1.37931069]
[1740162245146,0.30834219,648.63,647.76,0.27185338]
[1740162245342,0.30834219,648.63,647.68,0.27185338]
[1740162245547,0.30834219,648.63,647.69,0.27185338]
[1740162245848,0.30834219,648.63,647.7,0.27185338]
[1740162246045,0.30834219,648.63,647.68,0.27185338]
[1740162246239,0.30834219,648.63,647.63,1.61093088]
[1740162246441,0.30834219,648.63,647.64,0.27190166]
[1740162249548,0.30834219,648.63,647.65,0.27190166]
[1740162249749,0.30834219,648.63,647.61,1.37931069]
[1740162249750,0.30834219,648.63,647.66,0.27190166]
[1740162250146,0.30834219,648.63,647.67,0.27190166]
[1740162250447,0.30834219,648.63,647.68,0.27190166]
[1740162250645,0.30834219,648.63,647.62,0.27190166]
[1740162250849,0.30834219,648.63,647.63,0.27190166]
[1740162251148,0.30834219,648.63,647.64,0.27190166]
[1740162251343,0.30834219,648.63,647.5,0.27190166]
[1740162251548,0.30834219,648.63,647.51,0.27190166]
[1740162251753,0.30834219,648.63,647.48,0.27190166]
[1740162253150,0.30834219,648.63,647.49,0.27190166]
[1740162253351,0.30834219,648.63,647.5,0.27190166]
[1740162253551,0.30834219,648.63,647.35,0.27190166]
[1740162253746,0.30834219,648.63,647.36,0.27190166]
[1740162253945,0.30834219,648.63,647.37,0.27190166]
[1740162254149,0.30834219,648.63,647.36,1.6116023]
[1740162254349,0.30834219,648.63,647.4,1.37931069]
[1740162254550,0.30834219,648.63,647.41,0.27201628]
[1740162256045,0.28350687,648.62,647.41,0.27201628]
[1740162256948,0.28350687,648.62,647.37,0.27201628]
[1740162257146,0.28350687,648.62,647.38,0.27201628]
[1740162257453,0.30835646,648.6,647.39,0.27201628]
[1740162257753,1.50856936,648.59,647.4,0.27201628]
[1740162257947,0.30837072,648.57,647.22,0.27201628]
[1740162258150,1.50856936,648.56,647.41,0.27201628]
[1740162258447,0.30838498,648.54,647.21,1.37931069]
[1740162258649,0.28350687,648.53,647.41,1.154]
[1740162258850,0.30839925,648.51,647.41,1.154]
[1740162259050,1.50856936,648.5,647.41,1.154]
[1740162259248,0.30841352,648.48,647.41,1.154]
[1740162259449,0.28350687,648.47,647.41,1.154]
[1740162259651,0.30842778,648.45,647.41,1.154]
[1740162259846,1.50769909,648.44,647.41,1.154]
[1740162260051,0.30844205,648.42,647.41,1.154]
[1740162260348,1.50769909,648.41,647.41,1.154]
[1740162260552,0.30845633,648.39,647.41,1.154]
[1740162260751,1.50769909,648.38,647.41,1.154]
[1740162261051,3.46318512,648.37,647.41,1.154]
[1740162261256,0.30847536,648.35,647.41,1.154]
[1740162261552,0.28350687,648.34,647.41,1.154]
[1740162261751,0.30848963,648.32,647.41,1.154]
[1740162261945,1.50572957,648.31,647.41,1.154]
[1740162262148,1.50572957,648.3,647.41,1.154]
[1740162262352,0.30850866,648.28,647.41,1.154]
[1740162262552,1.50589172,648.27,647.41,1.154]
[1740162262752,0.30852294,648.25,647.41,1.154]
[1740162262954,0.28366902,648.24,647.41,1.154]
[1740162263157,0.30853722,648.22,647.41,1.154]
[1740162266653,1.21686069,648.21,647.41,1.154]
[1740162266852,0.30854674,648.2,647.41,1.154]
[1740162267959,1.21620523,648.19,647.41,1.154]
[1740162268154,1.80846293,648.18,647.41,1.154]
[1740162268354,1.80846769,648.17,647.41,1.154]
[1740162268553,3.75340116,648.16,647.41,1.154]
[1740162268756,3.75341745,648.15,647.41,1.154]
[1740162268957,3.44484691,648.14,647.41,1.154]
[1740162269158,3.44484691,648.13,647.41,1.154]
[1740162269360,3.44484691,648.12,647.41,1.154]
[1740162269565,3.44484691,648.11,647.41,1.154]
[1740162269754,3.44484691,648.1,647.41,1.154]
[1740162269959,3.16114547,648.09,647.41,1.154]
[1740162270159,3.44484691,648.08,647.41,1.154]
[1740162270361,3.44484691,648.07,647.41,1.154]
[1740162270560,3.7534603,648.06,647.41,1.154]
[1740162270756,3.44484691,648.05,647.41,1.154]
[1740162270962,3.75346983,648.04,647.41,1.154]
[1740162271160,3.44484691,648.03,647.41,1.154]
[1740162271359,3.75347935,648.02,647.41,1.154]
[1740162271559,3.44484691,648.01,647.41,1.154]
[1740162271759,3.75348888,648.0,647.41,1.154]
[1740162271963,3.44484691,647.99,647.41,1.154]
[1740162272171,1.80855817,647.98,647.41,1.154]
[1740162272365,1.49990667,647.97,647.41,1.154]
[1740162272669,1.21620523,647.96,647.41,1.154]
[1740162272869,1.21620523,647.95,647.41,1.154]
[1740162273064,1.21620523,647.94,647.41,1.154]
[1740162273270,0.30867055,647.94,647.41,1.154]
[1740162297293,0.30867055,647.94,647.42,0.27101874]
[1740162297484,0.30867055,647.94,647.41,1.154]
[1740162297683,0.30867055,647.94,646.54,1.36113665]
[1740162297888,0.30867055,647.94,646.55,0.27100235]
[1740162298089,0.30867055,647.94,646.56,0.27100235]
[1740162298383,0.30867055,647.94,646.57,0.27100235]
[1740162298688,0.30867055,647.94,646.58,0.27100235]
[1740162298887,0.30867055,647.94,646.59,0.58031737]
[1740162299088,0.30867055,647.94,646.6,0.58038809]
[1740162299289,0.30867055,647.94,646.61,0.58038331]
[1740162299490,0.30867055,647.94,646.62,0.58037853]
[1740162299692,0.30867055,647.94,646.68,1.36113665]
[1740162299992,0.30867055,647.94,646.69,0.58034505]
[1740162300193,0.30867055,647.94,646.7,0.58034026]
[1740162300395,0.30867055,647.94,646.71,0.58033548]
[1740162300688,0.30867055,647.94,646.72,0.5803307]
[1740162300889,0.30867055,647.94,646.73,0.27107786]
[1740162301193,0.30867055,647.94,646.9,1.36113665]
[1740162301390,0.30867055,647.94,646.91,0.27107786]
[1740162301588,0.30867055,647.94,646.92,0.27107786]
[1740162301786,0.30867055,647.94,646.93,0.27107786]
[1740162302094,0.30867055,647.94,646.94,0.27107786]
[1740162302391,0.30867055,647.94,646.95,0.27107786]
[1740162302592,0.30867055,647.94,646.96,0.27107786]
[1740162302793,0.30867055,647.94,646.97,0.27107786]
[1740162302990,0.30867055,647.94,646.98,0.27107786]
[1740162303192,0.30867055,647.94,646.99,0.27107786]
[1740162303387,0.30867055,647.94,647.0,0.27107786]
[1740162303587,0.30867055,647.94,647.01,0.27107786]
[1740162303893,0.30867055,647.94,647.02,0.27107786]
[1740162304192,0.30867055,647.94,647.03,0.27107786]
[1740162304388,0.30867055,647.94,647.04,0.27107786]
[1740162304588,0.30867055,647.94,647.05,0.27107786]
[1740162304789,0.30867055,647.94,647.06,0.27107786]
[1740162304989,0.30867055,647.94,646.84,1.36113665]
[1740162304990,0.30867055,647.94,647.07,0.27107786]
[1740162305191,0.30867055,647.94,647.08,0.27107786]
[1740162305489,0.30867055,647.94,647.09,0.27107786]
[1740162305793,0.30867055,647.94,647.1,0.27107786]
[1740162305992,0.30867055,647.94,647.04,0.27107786]
[1740162306191,0.30867055,647.94,647.05,0.27107786]
[1740162306587,0.30867055,647.94,647.06,0.27107786]
[1740162306792,0.30867055,647.94,647.04,0.27107786]
[1740162306993,0.30867055,647.94,647.05,0.27107786]
[1740162307192,0.30867055,647.94,647.04,0.27107786]
[1740162307388,0.30867055,647.94,647.05,0.27107786]
[1740162307591,0.30867055,647.94,647.04,0.27107786]
[1740162307792,0.30867055,647.94,647.05,0.27107786]
[1740162307990,0.30867055,647.94,646.88,1.36113665]
[1740162308190,0.30867055,647.94,646.89,0.27081181]
[1740162308390,0.30867055,647.94,646.9,0.27081181]
[1740162308595,0.30867055,647.94,646.88,1.36113665]
[1740162308596,0.30867055,647.94,646.91,0.27081181]
[1740162308796,0.30867055,647.94,646.88,1.36113665]
[1740162308797,0.30867055,647.94,646.92,0.27081181]
[1740162308998,0.30867055,647.94,646.93,0.27081181]
[1740162309291,0.30867055,647.94,646.94,0.27081181]
[1740162309494,0.30867055,647.94,646.95,0.27081181]
[1740162309695,0.30867055,647.94,646.99,1.36113665]
[1740162309997,0.30867055,647.94,647.0,0.27081181]
[1740162310198,0.30867055,647.94,647.01,0.27081181]
[1740162310396,0.30867055,647.94,647.02,0.27081181]
[1740162310598,0.30867055,647.94,647.03,0.27081181]